bitfinex-derivatives/quotes_BTCF0:USTF0_20210705
["timestamp","ask_amount","ask_price","bid_price","bid_amount"]
[1625452453659,1.25750383,34442.0,34441.0,0.00465204]
[1625452453857,1.25750383,34442.0,34441.0,0.04465204]
[1625452454610,1.19850383,34442.0,34441.0,0.04465204]
[1625452454820,1.91913466,34443.0,34441.0,0.04465204]
[1625452455112,1.02637435,34442.0,34441.0,0.04]
[1625452455263,1.02637435,34442.0,34440.0,2.0]
[1625452455464,1.02637435,34442.0,34441.0,0.00466715]
[1625452456167,1.02637435,34442.0,34441.0,0.10366715]
[1625452456296,1.02637435,34442.0,34441.0,0.54043715]
[1625452456370,1.19730319,34444.0,34441.0,0.54043715]
[1625452456669,0.94230319,34444.0,34441.0,0.97533115]
[1625452456768,1.19700058,34449.0,34442.0,1.19282123]
[1625452456868,1.19700058,34449.0,34442.0,1.25182123]
[1625452456968,1.19700058,34449.0,34442.0,1.30053445]
[1625452457071,1.19700058,34449.0,34443.0,0.432308]
[1625452457168,1.19700058,34449.0,34443.0,0.491308]
[1625452457268,0.24057544,34450.0,34449.0,3.5874]
[1625452457386,0.24057544,34450.0,34449.0,0.2783]
[1625452457569,0.24057544,34450.0,34449.0,0.82311668]
[1625452457675,0.24057544,34450.0,34449.0,0.74511668]
[1625452458625,0.29957544,34450.0,34449.0,0.2639658]
[1625452458727,0.29957544,34450.0,34449.0,0.04466576]
[1625452458858,0.35857544,34450.0,34449.0,0.38082974]
[1625452459225,1.72663395,34450.0,34449.0,0.04466576]
[1625452459537,1.96720939,34450.0,34449.0,6.576e-05]
[1625452459732,1.96720939,34450.0,34444.0,0.33653288]
[1625452459827,2.18403939,34450.0,34444.0,0.33653288]
[1625452459929,3.72310523,34450.0,34442.0,0.33667561]
[1625452460028,3.72310523,34450.0,34445.0,0.00466113]
[1625452460329,3.72310523,34450.0,34443.0,0.00466111]
[1625452460529,1.36810551,34446.0,34441.0,0.336704]
[1625452460627,1.42710551,34446.0,34441.0,0.336704]
[1625452460727,1.48610551,34446.0,34441.0,0.336704]
[1625452460829,1.48610551,34446.0,34442.0,0.00466118]
[1625452461079,1.36791593,34445.0,34442.0,0.00466118]
[1625452461181,1.42691593,34445.0,34442.0,0.00466118]
[1625452461579,0.48115088,34443.0,34442.0,0.00466118]
[1625452461680,0.78131088,34443.0,34442.0,0.00466118]
[1625452464538,0.78131088,34443.0,34441.0,0.336704]
[1625452464634,0.78131088,34443.0,34442.0,0.33746562]
[1625452467545,0.78131088,34443.0,34441.0,0.33809695]
[1625452470300,0.78131088,34443.0,34442.0,0.00465899]
[1625452471103,0.78131088,34443.0,34441.0,0.00465903]
[1625452473409,0.78131088,34443.0,34441.0,0.34236086]
[1625452473860,0.78131088,34443.0,34442.0,0.00465889]
[1625452475569,0.54015088,34443.0,34442.0,0.52568433]
[1625452475719,0.54015088,34443.0,34442.0,0.86230967]
[1625452479024,0.54015088,34443.0,34442.0,0.62173423]
[1625452480726,1.73773138,34443.0,34442.0,0.28510889]
[1625452483032,1.73773138,34443.0,34442.0,0.62231058]
[1625452484034,1.73773138,34443.0,34442.0,0.28510889]
[1625452484485,1.73773138,34443.0,34442.0,0.00465889]
[1625452484885,1.73773138,34443.0,34441.0,0.00466273]
[1625452484986,1.96826138,34443.0,34441.0,0.00466273]
[1625452485087,3.33767057,34443.0,34441.0,0.34192808]
[1625452485437,2.14009007,34443.0,34442.0,0.0046628]
[1625452485889,4.02302155,34443.0,34442.0,0.0046628]
[1625452486741,5.0500587,34443.0,34442.0,0.0046628]
[1625452490201,5.0500587,34443.0,34441.0,0.00466306]
[1625452490802,4.27891658,34442.0,34441.0,0.00466306]
[1625452490905,4.33791658,34442.0,34441.0,0.00466306]
[1625452491255,4.33791658,34442.0,34441.0,0.08906026]
[1625452491757,2.96871119,34442.0,34441.0,0.08906026]
[1625452492610,4.33787123,34442.0,34441.0,0.00466306]
[1625452493413,4.33787123,34442.0,34441.0,0.08930192]
[1625452494171,4.39687123,34442.0,34441.0,0.08930192]
[1625452494465,4.39687123,34442.0,34438.0,1.01566629]
[1625452494466,4.39687123,34442.0,34438.0,0.68336785]
[1625452494671,4.45587123,34442.0,34438.0,0.18336785]
[1625452494785,0.01375519,34441.0,34438.0,0.12904752]
[1625452494867,0.57275519,34441.0,34436.0,1.18156073]
[1625452495075,0.63175519,34441.0,34436.0,1.18156073]
[1625452495168,0.13175519,34441.0,34435.0,1.01698784]
[1625452495267,0.01378335,34440.0,34435.0,1.01698784]
[1625452495366,0.13178335,34440.0,34435.0,1.01698784]
[1625452495566,0.118,34440.0,34436.0,0.00466916]
[1625452495770,0.48115088,34437.0,34436.0,0.00466916]
[1625452495866,0.54015088,34437.0,34436.0,0.00466916]
[1625452496068,0.59915088,34437.0,34436.0,0.00466916]
[1625452496168,0.54015088,34437.0,34436.0,0.00466916]
[1625452496367,0.54015088,34437.0,34424.0,1.18955324]
[1625452496368,0.59915088,34437.0,34425.0,0.00466923]
[1625452496718,4.64958033,34437.0,34425.0,1.19428481]
[1625452496928,4.70858033,34437.0,34425.0,1.19428481]
[1625452497122,1.19810726,34427.0,34426.0,0.00466953]
[1625452497230,1.25710726,34427.0,34426.0,0.00466953]
[1625452497430,1.25710726,34427.0,34423.0,0.00466937]
[1625452497632,1.25710726,34427.0,34424.0,1.18990372]
[1625452497633,0.059,34427.0,34424.0,1.18990372]
[1625452497726,0.29957544,34427.0,34426.0,0.48115088]
[1625452498025,0.35857544,34427.0,34426.0,0.48582466]
[1625452498126,0.29957544,34427.0,34426.0,0.48582466]
[1625452498224,0.35857544,34427.0,34426.0,0.48582466]
[1625452498625,5.27437544,34427.0,34426.0,0.48582466]
[1625452498781,6.47272073,34427.0,34426.0,0.48582466]
[1625452499026,6.41372073,34427.0,34426.0,0.48582466]
[1625452499581,6.41372073,34427.0,34426.0,0.24524922]
[1625452499781,6.71329617,34427.0,34426.0,0.24524922]
[1625452500133,5.51495088,34427.0,34426.0,0.24524922]
[1625452500537,6.71302346,34427.0,34426.0,0.24524922]
[1625452501085,1.79722346,34427.0,34426.0,0.24524922]
[1625452502138,1.73822346,34427.0,34426.0,0.24524922]
[1625452502540,0.54015088,34427.0,34426.0,0.24524922]
[1625452503142,1.7380111,34427.0,34426.0,0.24524922]
[1625452503241,1.7380111,34427.0,34426.0,0.47967922]
[1625452503693,0.54015088,34427.0,34426.0,0.47967922]
[1625452505447,1.73782047,34427.0,34426.0,0.47967922]
[1625452506297,0.54015088,34427.0,34426.0,0.47967922]
[1625452508003,0.54015088,34427.0,34426.0,0.53867922]
[1625452508505,0.48115088,34427.0,34426.0,0.53867922]
[1625452508954,0.48115088,34427.0,34426.0,5.32117922]
[1625452509056,1.43783895,34431.0,34426.0,5.32117922]
[1625452509156,0.24057544,34431.0,34426.0,6.5185966]
[1625452509256,0.24057544,34431.0,34426.0,6.50821988]
[1625452509505,0.24057544,34431.0,34427.0,0.00467311]
[1625452509606,0.24057544,34431.0,34430.0,1.18599472]
[1625452509807,1.19712345,34436.0,34430.0,1.6671456]
[1625452509907,1.25612345,34436.0,34430.0,1.7261456]
[1625452510006,1.25612345,34436.0,34430.0,1.73081832]
[1625452510206,1.25612345,34436.0,34430.0,3.08492019]
[1625452510207,0.059,34436.0,34430.0,3.08492019]
[1625452510308,0.059,34436.0,34431.0,0.00467272]
[1625452510407,0.059,34436.0,34431.0,0.06367272]
[1625452510706,0.059,34436.0,34433.0,1.18499524]
[1625452510809,0.059,34436.0,34433.0,1.47121524]
[1625452511158,0.059,34436.0,34434.0,0.06367287]
[1625452511659,0.059,34436.0,34435.0,0.00467298]
[1625452512164,0.059,34436.0,34435.0,0.06367298]
[1625452512263,0.059,34436.0,34435.0,0.00467298]
[1625452512864,0.059,34436.0,34435.0,0.06367298]
[1625452512966,0.059,34436.0,34435.0,0.30629298]
[1625452514872,0.059,34436.0,34435.0,0.24729298]
[1625452515725,0.57211703,34436.0,34435.0,0.24729298]
[1625452515976,0.57211703,34436.0,34435.0,0.30629298]
[1625452517329,0.57211703,34436.0,34435.0,0.81371565]
[1625452517678,0.51311703,34436.0,34435.0,0.81371565]
[1625452518484,0.24057544,34437.0,34435.0,1.99706375]
[1625452518980,0.24057544,34437.0,34436.0,0.00466703]
[1625452519080,0.24057544,34437.0,34436.0,1.75431144]
[1625452520331,0.75391566,34437.0,34436.0,0.57086035]
[1625452520432,0.51334022,34437.0,34436.0,0.61086035]
[1625452520533,0.51334022,34437.0,34436.0,0.66986035]
[1625452520633,1.19756577,34441.0,34436.0,0.66986035]
[1625452521035,1.19756577,34441.0,34437.0,0.01033112]
[1625452521133,0.24057544,34442.0,34437.0,0.07399722]
[1625452521232,0.24057544,34442.0,34437.0,0.1226661]
[1625452521333,1.4380573,34445.0,34437.0,0.1226661]
[1625452521432,1.4380573,34445.0,34438.0,0.00466604]
[1625452521532,1.4380573,34445.0,34438.0,0.13299328]
[1625452521733,0.24057544,34445.0,34441.0,1.18093002]
[1625452521833,0.24057544,34445.0,34441.0,1.29893002]
[1625452521933,0.24057544,34445.0,34444.0,0.52115088]
[1625452522033,0.24057544,34445.0,34444.0,0.78508088]
[1625452522234,0.24057544,34445.0,34444.0,0.78974682]
[1625452522837,1.19721735,34449.0,34444.0,0.78974682]
[1625452522935,1.19713436,34448.0,34444.0,0.78974682]
[1625452523037,1.19713436,34448.0,34444.0,0.84874682]
[1625452523336,1.19706748,34450.0,34445.0,0.00466562]
[1625452523439,1.19706748,34450.0,34445.0,0.12266562]
[1625452523538,1.19706748,34450.0,34446.0,5.1484]
[1625452523636,1.19706748,34450.0,34446.0,5.2664]
[1625452523839,1.19706748,34450.0,34449.0,0.24057544]
[1625452523936,1.19706748,34450.0,34449.0,0.29957544]
[1625452524137,1.19706748,34450.0,34449.0,0.30424058]
[1625452524638,1.19665519,34451.0,34449.0,0.30424058]
[1625452524940,1.19665519,34451.0,34450.0,0.00466556]
[1625452525039,1.19665519,34451.0,34450.0,0.06366556]
[1625452525139,1.15335519,34451.0,34450.0,0.06366556]
[1625452525241,1.15335519,34451.0,34450.0,0.059]
[1625452525441,1.15335519,34451.0,34450.0,0.06366553]
[1625452525591,2.17908051,34451.0,34450.0,0.06366553]
[1625452525690,2.17908051,34451.0,34450.0,0.12266553]
[1625452525790,0.17708051,34451.0,34450.0,0.19466553]
[1625452526341,1.02564289,34453.0,34450.0,0.19466553]
[1625452526790,1.02564289,34453.0,34451.0,0.00466511]
[1625452526893,1.60732492,34458.0,34451.0,0.34483511]
[1625452527343,1.60732492,34458.0,34451.0,0.34017]
[1625452527843,0.24057544,34458.0,34452.0,0.00466473]
[1625452527943,0.24057544,34458.0,34457.0,0.48115088]
[1625452528043,0.24057544,34458.0,34457.0,0.54015088]
[1625452529900,0.24057544,34458.0,34457.0,0.48115088]
[1625452530197,0.29957544,34458.0,34457.0,0.48115088]
[1625452530348,1.66497607,34458.0,34457.0,0.48115088]
[1625452530449,6.87257607,34458.0,34457.0,0.48115088]
[1625452530800,6.87257607,34458.0,34457.0,0.55315088]
[1625452530900,1.66497607,34458.0,34457.0,0.61215088]
[1625452531201,1.66497607,34458.0,34457.0,0.55315088]
[1625452532059,1.66497607,34458.0,34457.0,0.62515088]
[1625452532212,1.66497607,34458.0,34457.0,0.68415088]
[1625452532660,1.66497607,34458.0,34457.0,0.92082088]
[1625452535468,1.66497607,34458.0,34457.0,0.86182088]
[1625452536569,1.66497607,34458.0,34457.0,0.92082088]
[1625452536969,1.60597607,34458.0,34457.0,0.92082088]
[1625452537372,1.66497607,34458.0,34457.0,0.92082088]
[1625452538423,0.29957544,34458.0,34457.0,0.92082088]
[1625452539375,0.29957544,34458.0,34457.0,0.86182088]
[1625452539475,1.66375656,34458.0,34457.0,0.86182088]
[1625452540527,1.66375656,34458.0,34457.0,0.92082088]
[1625452540628,1.66375656,34458.0,34457.0,0.86182088]
[1625452540928,1.66375656,34458.0,34457.0,0.92082088]
[1625452542531,1.60475656,34458.0,34457.0,0.92082088]
[1625452543181,1.66375656,34458.0,34457.0,0.92082088]
[1625452543281,1.60475656,34458.0,34457.0,0.92082088]
[1625452543434,0.24057544,34458.0,34457.0,0.92082088]
[1625452543531,0.29957544,34458.0,34457.0,0.92082088]
[1625452543985,1.60432043,34458.0,34457.0,0.92082088]
[1625452544737,1.66332043,34458.0,34457.0,0.92082088]
[1625452545035,1.60432043,34458.0,34457.0,0.92082088]
[1625452545137,0.24057544,34458.0,34457.0,0.92082088]
[1625452545235,0.29957544,34458.0,34457.0,0.92548387]
[1625452545736,0.29957544,34458.0,34457.0,0.92082088]
[1625452545986,0.24057544,34458.0,34457.0,0.92082088]
[1625452546086,1.49261091,34458.0,34457.0,0.92082088]
[1625452546288,1.49261091,34458.0,34457.0,0.92548397]
[1625452546391,1.43361091,34458.0,34457.0,0.92548397]
[1625452546843,1.49261091,34458.0,34457.0,0.92548397]
[1625452547892,1.43361091,34458.0,34457.0,0.92548397]
[1625452548091,1.49261091,34458.0,34457.0,0.92548397]
[1625452554356,0.29957544,34458.0,34457.0,0.92548397]
[1625452555109,0.98091464,34458.0,34457.0,0.92548397]
[1625452556058,3.19508444,34458.0,34457.0,0.92548397]
[1625452557060,3.13608444,34458.0,34457.0,0.92548397]
[1625452557464,3.19508444,34458.0,34457.0,0.92548397]
[1625452557560,3.13608444,34458.0,34457.0,0.92548397]
[1625452558010,3.19508444,34458.0,34457.0,0.92548397]
[1625452558368,3.13608444,34458.0,34457.0,0.92548397]
[1625452558491,2.895509,34458.0,34457.0,0.92548397]
[1625452558714,0.6813392,34458.0,34457.0,0.92548397]
[1625452559063,1.60338393,34462.0,34457.0,0.92548397]
[1625452559064,0.24057544,34462.0,34457.0,0.92548397]
[1625452559465,0.24057544,34462.0,34458.0,0.00466624]
[1625452559563,0.24057544,34462.0,34458.0,0.06366624]
[1625452559725,0.68163592,34461.0,34460.0,4.8628]
[1625452559815,0.68163592,34461.0,34460.0,4.9218]
[1625452559914,0.65353592,34461.0,34460.0,4.9218]
[1625452560016,0.65353592,34461.0,34460.0,0.059]
[1625452560114,0.65353592,34461.0,34460.0,0.29957544]
[1625452560221,0.65353592,34461.0,34460.0,0.30424141]
[1625452560315,1.26294414,34462.0,34460.0,0.30424141]
[1625452560316,0.24057544,34462.0,34460.0,0.30424141]
[1625452560716,0.24057544,34462.0,34461.0,0.00466595]
[1625452560820,0.24057544,34462.0,34461.0,0.06366595]
[1625452562118,0.23647544,34462.0,34461.0,0.06366595]
[1625452563269,1.25914459,34462.0,34461.0,0.06366595]
[1625452564874,1.25614459,34462.0,34461.0,0.06366595]
[1625452566427,2.45071392,34462.0,34461.0,0.06366595]
[1625452569081,3.81690187,34462.0,34461.0,0.06366595]
[1625452569683,2.45071392,34462.0,34461.0,0.06366595]
[1625452569785,2.50971392,34462.0,34461.0,0.00466595]
[1625452570090,3.87595757,34462.0,34461.0,0.00466595]
[1625452570485,3.87595757,34462.0,34458.0,0.00466823]
[1625452570685,5.41358223,34462.0,34461.0,0.00466838]
[1625452570934,5.41358223,34462.0,34458.0,0.00466848]
[1625452571033,4.1936,34459.0,34458.0,0.00466848]
[1625452571134,8.11225924,34459.0,34458.0,0.00466848]
[1625452571585,9.64994566,34459.0,34458.0,0.00466848]
[1625452572188,9.8905211,34459.0,34458.0,0.00466848]
[1625452572288,5.6969211,34459.0,34458.0,0.04466848]
[1625452575698,5.6969211,34459.0,34458.0,0.10366848]
[1625452578262,5.18472566,34459.0,34458.0,0.35676848]
[1625452578376,5.12572566,34459.0,34458.0,0.41576848]
[1625452578560,3.58803924,34459.0,34458.0,0.41576848]
[1625452578711,1.12498811,34460.0,34458.0,0.41576848]
[1625452578809,1.12498811,34460.0,34458.0,0.84869848]
[1625452578910,1.06598811,34460.0,34458.0,0.78969848]
[1625452579011,1.06598811,34460.0,34459.0,4.82796712]
[1625452579110,0.99558811,34460.0,34459.0,4.94596712]
[1625452579211,1.71270194,34465.0,34459.0,4.94596712]
[1625452579309,2.7400491,34484.0,34459.0,4.94596712]
[1625452579310,1.71251712,34473.0,34459.0,5.38374312]
[1625452579410,1.77151712,34473.0,34459.0,5.38374312]
[1625452579511,1.77151712,34473.0,34460.0,0.00466688]
[1625452579610,1.77151712,34473.0,34461.0,0.086]
[1625452579711,1.77151712,34473.0,34461.0,0.204]
[1625452579812,0.059,34473.0,34467.0,0.16752084]
[1625452579912,0.059,34473.0,34467.0,0.40184084]
[1625452580011,0.059,34473.0,34467.0,0.46084084]
[1625452580213,0.24057544,34472.0,34471.0,0.24057544]
[1625452580312,0.29957544,34472.0,34471.0,0.29957544]
[1625452580515,0.29957544,34472.0,34471.0,5.34867544]
[1625452580615,0.29957544,34472.0,34471.0,5.35334223]
[1625452580713,0.29957544,34472.0,34471.0,0.30424223]
[1625452581214,0.29957544,34472.0,34471.0,5.35274223]
[1625452581916,0.29957544,34472.0,34471.0,5.34807544]
[1625452582368,1.71235989,34476.0,34471.0,5.34807544]
[1625452582666,1.71235989,34476.0,34471.0,5.40707544]
[1625452582968,0.24057544,34479.0,34471.0,5.5738298]
[1625452583069,0.24057544,34479.0,34471.0,5.5148298]
[1625452583168,0.29957544,34479.0,34471.0,0.4663298]
[1625452583267,0.24057544,34479.0,34471.0,0.4663298]
[1625452583369,0.24057544,34479.0,34471.0,0.5253298]
[1625452583567,0.24057544,34479.0,34475.0,0.16657252]
[1625452583568,0.29957544,34479.0,34475.0,0.16657252]
[1625452583667,0.29957544,34479.0,34475.0,0.44982252]
[1625452583767,0.29957544,34479.0,34475.0,0.50882252]
[1625452583868,0.24057544,34479.0,34475.0,0.50882252]
[1625452584119,0.24057544,34479.0,34476.0,0.16643584]
[1625452584221,0.24057544,34479.0,34478.0,0.48115088]
[1625452584420,0.24057544,34479.0,34478.0,0.59915088]
[1625452584720,0.24057544,34479.0,34478.0,0.54015088]
[1625452584820,0.24057544,34479.0,34478.0,0.59915088]
[1625452585420,0.24057544,34479.0,34478.0,0.54015088]
[1625452585872,0.24057544,34479.0,34478.0,0.58015088]
[1625452586023,0.24057544,34479.0,34478.0,0.63915088]
[1625452586376,0.24057544,34479.0,34478.0,0.58015088]
[1625452589132,0.24057544,34479.0,34478.0,0.63915088]
[1625452589632,0.24057544,34479.0,34478.0,0.58015088]
[1625452589984,0.4112977,34479.0,34478.0,0.58015088]
[1625452590435,0.24057544,34479.0,34478.0,0.58015088]
[1625452590939,0.24057544,34479.0,34478.0,0.63915088]
[1625452591035,0.24057544,34479.0,34478.0,0.58015088]
[1625452591386,0.41118258,34479.0,34478.0,0.63915088]
[1625452591486,0.41118258,34479.0,34478.0,0.58015088]
[1625452591584,0.41118258,34479.0,34478.0,0.63915088]
[1625452591685,0.41118258,34479.0,34478.0,0.58015088]
[1625452591938,0.41118258,34479.0,34478.0,0.66625088]
[1625452592089,0.41118258,34479.0,34478.0,0.79725088]
[1625452592191,0.41118258,34479.0,34478.0,0.86925088]
[1625452592442,0.24057544,34487.0,34478.0,0.86925088]
[1625452592741,0.24057544,34487.0,34479.0,0.436221]
[1625452592841,0.24057544,34487.0,34479.0,0.554221]
[1625452593846,0.24057544,34487.0,34486.0,0.04]
[1625452593945,0.24057544,34487.0,34486.0,0.36292]
[1625452594247,0.24057544,34487.0,34486.0,0.80407088]
[1625452594948,0.35857544,34487.0,34486.0,0.56349544]
[1625452595048,0.35857544,34487.0,34486.0,0.24057544]
[1625452595498,1.72037914,34487.0,34486.0,0.24057544]
[1625452595999,3.25244003,34487.0,34486.0,0.24057544]
[1625452596348,3.49301547,34487.0,34486.0,0.24057544]
[1625452597201,3.49301547,34487.0,34478.0,0.62515088]
[1625452597305,3.78610547,34487.0,34478.0,0.62515088]
[1625452597703,3.78610547,34487.0,34478.0,0.38457544]
[1625452597905,1.36169227,34480.0,34478.0,0.38457544]
[1625452598003,1.65236227,34480.0,34478.0,0.38457544]
[1625452598103,1.71136227,34480.0,34478.0,0.38457544]
[1625452598303,0.48115088,34479.0,34478.0,0.38457544]
[1625452598408,1.90192281,34479.0,34478.0,0.38457544]
[1625452598506,1.96092281,34479.0,34478.0,0.38457544]
[1625452598954,3.15251916,34479.0,34478.0,0.42457544]
[1625452599507,3.09351916,34479.0,34478.0,0.42457544]
[1625452600568,3.15251916,34479.0,34478.0,0.42457544]
[1625452600674,3.09351916,34479.0,34478.0,0.42457544]
[1625452600765,3.03451916,34479.0,34478.0,0.42457544]
[1625452601021,3.03451916,34479.0,34478.0,0.48357544]
[1625452601466,0.48115088,34479.0,34478.0,0.48357544]
[1625452601967,0.48115088,34479.0,34478.0,0.42457544]
[1625452602717,0.54015088,34479.0,34478.0,0.42457544]
[1625452602818,0.48115088,34479.0,34478.0,0.42457544]
[1625452602918,0.54015088,34479.0,34478.0,0.42457544]
[1625452603119,0.48115088,34479.0,34478.0,0.42457544]
[1625452603572,0.54015088,34479.0,34478.0,0.42457544]
[1625452603671,0.48115088,34479.0,34478.0,0.42457544]
[1625452603971,0.54015088,34479.0,34478.0,0.42457544]
[1625452604072,0.48115088,34479.0,34478.0,0.42457544]
[1625452604224,0.54015088,34479.0,34478.0,0.42457544]
[1625452604624,0.59915088,34479.0,34478.0,0.42457544]
[1625452605025,0.54015088,34479.0,34478.0,0.42457544]
[1625452605129,0.59915088,34479.0,34478.0,0.42457544]
[1625452605225,0.54015088,34479.0,34478.0,0.42457544]
[1625452605476,0.48115088,34479.0,34478.0,0.42457544]
[1625452605577,0.48115088,34479.0,34478.0,0.71363544]
[1625452607783,0.48115088,34479.0,34478.0,0.71832609]
[1625452608884,0.68903088,34479.0,34478.0,0.42926609]
[1625452609085,1.71021089,34479.0,34478.0,0.42926609]
[1625452610988,2.22095304,34479.0,34478.0,0.42926609]
[1625452611439,3.41255859,34479.0,34478.0,0.42926609]
[1625452611740,2.22095304,34479.0,34478.0,0.42926609]
[1625452612644,3.41263984,34479.0,34478.0,0.42926609]
[1625452614699,3.47163984,34479.0,34478.0,0.42926609]
[1625452615501,3.41263984,34479.0,34478.0,0.42926609]
[1625452615601,3.41263984,34479.0,34478.0,0.73608609]
[1625452615801,2.22095304,34479.0,34478.0,0.73608609]
[1625452617203,2.22095304,34479.0,34478.0,0.79508609]
[1625452617307,2.01307304,34479.0,34478.0,0.73608609]
[1625452617404,2.01307304,34479.0,34478.0,0.79508609]
[1625452617907,0.82188111,34479.0,34478.0,0.79508609]
[1625452618808,0.82188111,34479.0,34478.0,0.73608609]
[1625452619011,0.99225253,34479.0,34478.0,0.73608609]
[1625452619462,0.99225253,34479.0,34478.0,0.79508609]
[1625452619561,1.333038,34479.0,34478.0,0.79508609]
[1625452619763,1.333038,34479.0,34478.0,0.85408609]
[1625452619964,0.82193635,34479.0,34478.0,0.85408609]
[1625452620165,0.82193635,34479.0,34478.0,0.79508609]
[1625452620463,0.82193635,34479.0,34478.0,0.73608609]
[1625452620863,1.67365534,34479.0,34478.0,0.73608609]
[1625452622765,1.66235534,34479.0,34478.0,0.73608609]
[1625452623167,0.46985088,34479.0,34478.0,0.73608609]
[1625452623617,0.81063823,34479.0,34478.0,0.73608609]
[1625452624070,1.32173055,34479.0,34478.0,0.73608609]
[1625452624471,0.9809432,34479.0,34478.0,0.73608609]
[1625452624769,1.66241527,34479.0,34478.0,0.73608609]
[1625452625522,1.72141527,34479.0,34478.0,0.73608609]
[1625452625922,1.66241527,34479.0,34478.0,0.73608609]
[1625452626272,0.81067055,34479.0,34478.0,0.73608609]
[1625452628827,0.46985088,34479.0,34478.0,0.73608609]
[1625452629780,0.46985088,34479.0,34478.0,0.79508609]
[1625452630229,0.46985088,34479.0,34478.0,0.85408609]
[1625452630629,0.46985088,34479.0,34478.0,0.79508609]
[1625452630728,0.46985088,34479.0,34478.0,0.73608609]
[1625452630729,0.81088845,34479.0,34478.0,0.73608609]
[1625452631431,0.81088845,34479.0,34478.0,0.79508609]
[1625452631631,1.32236414,34479.0,34478.0,0.79508609]
[1625452631881,1.32236414,34479.0,34478.0,0.85408609]
[1625452631984,1.32236414,34479.0,34478.0,0.79508609]
[1625452632131,1.32236414,34479.0,34478.0,0.73608609]
[1625452632334,0.98132657,34479.0,34478.0,0.73608609]
[1625452632733,1.6637565,34479.0,34478.0,0.73608609]
[1625452633183,1.6637565,34479.0,34478.0,0.79508609]
[1625452633585,1.6637565,34479.0,34478.0,0.73608609]
[1625452633834,1.32261807,34479.0,34478.0,0.73608609]
[1625452634134,1.32261807,34479.0,34478.0,0.79508609]
[1625452634234,1.27911807,34479.0,34478.0,0.79508609]
[1625452634335,0.76764238,34479.0,34478.0,0.79508609]
[1625452634736,1.62188296,34479.0,34478.0,0.79508609]
[1625452636188,1.62188296,34479.0,34478.0,0.85408609]
[1625452636841,2.64756092,34479.0,34478.0,1.18410172]
[1625452638645,2.64756092,34479.0,34478.0,2.01073761]
[1625452638946,2.40698548,34479.0,34478.0,2.01073761]
[1625452639898,2.40698548,34479.0,34478.0,3.00188319]
[1625452640252,2.40698548,34479.0,34478.0,2.94288319]
[1625452640550,2.40698548,34479.0,34478.0,3.24245863]
[1625452641600,2.40698548,34479.0,34478.0,3.18345863]
[1625452641802,3.60542928,34479.0,34478.0,3.18345863]
[1625452643154,3.60542928,34479.0,34478.0,2.19231305]
[1625452643754,4.97560961,34479.0,34478.0,2.19231305]
[1625452644005,5.03460961,34479.0,34478.0,2.19231305]
[1625452644655,5.03460961,34479.0,34478.0,1.36683062]
[1625452645358,4.97560961,34479.0,34478.0,1.36683062]
[1625452645456,4.97560961,34479.0,34478.0,1.53239612]
[1625452646207,5.03460961,34479.0,34478.0,1.53239612]
[1625452647864,5.03460961,34479.0,34478.0,2.19455815]
[1625452648811,5.03460961,34479.0,34478.0,1.53239612]
[1625452649618,5.03460961,34479.0,34478.0,1.36685563]
[1625452651972,4.97560961,34479.0,34478.0,1.36685563]
[1625452652175,3.60542928,34479.0,34478.0,2.19462262]
[1625452652574,3.60542928,34479.0,34478.0,2.25362262]
[1625452653180,3.60542928,34479.0,34478.0,3.24603674]
[1625452654329,2.40698548,34479.0,34478.0,4.40478863]
[1625452655130,2.40698548,34479.0,34478.0,4.4133735]
[1625452656385,2.40698548,34479.0,34478.0,4.40478863]
[1625452656735,2.40698548,34479.0,34478.0,4.41337348]
[1625452657491,1.38130752,34479.0,34478.0,5.72930522]
[1625452657839,1.38130752,34479.0,34478.0,4.40478863]
[1625452658290,1.38130752,34479.0,34478.0,4.41337349]
[1625452658388,1.38130752,34479.0,34478.0,5.73817277]
[1625452658538,1.38130752,34479.0,34478.0,5.72958791]
[1625452658790,1.38130752,34479.0,34478.0,4.40478863]
[1625452659239,2.40909008,34479.0,34478.0,4.40478863]
[1625452659689,2.40909008,34479.0,34478.0,4.34578863]
[1625452660189,3.60817193,34479.0,34478.0,4.34578863]
[1625452663747,3.60817193,34479.0,34478.0,3.18703674]
[1625452664100,4.97901046,34479.0,34478.0,3.18703674]
[1625452664401,2.40909008,34479.0,34478.0,4.34812449]
[1625452664902,3.60857363,34479.0,34478.0,4.34812449]
[1625452666455,2.40909008,34479.0,34478.0,4.34812449]
[1625452668310,2.46809008,34479.0,34478.0,4.34812449]
[1625452668410,2.78345008,34479.0,34478.0,3.50115361]
[1625452668760,5.59453324,34479.0,34478.0,1.34765174]
[1625452669065,9.56303324,34479.0,34478.0,1.34765174]
[1625452669262,11.10547355,34479.0,34478.0,0.18869065]
[1625452669460,7.13697355,34479.0,34478.0,0.18869065]
[1625452669712,7.19597355,34479.0,34478.0,0.18869065]
[1625452671669,7.13697355,34479.0,34478.0,0.18869065]
[1625452671769,7.07797355,34479.0,34478.0,0.18869065]
[1625452672069,7.13697355,34479.0,34478.0,0.18869065]
[1625452672319,7.07797355,34479.0,34478.0,0.18869065]
[1625452672520,7.07797355,34479.0,34478.0,0.52180668]
[1625452673071,5.53553324,34479.0,34478.0,1.35462278]
[1625452674078,5.59453324,34479.0,34478.0,1.35462278]
[1625452674578,7.13727989,34479.0,34478.0,0.52244941]
[1625452674778,7.19627989,34479.0,34478.0,0.52244941]
[1625452675029,7.19627989,34479.0,34478.0,0.27217074]
[1625452675178,7.13727989,34479.0,34478.0,0.27217074]
[1625452675681,7.19627989,34479.0,34478.0,0.27217074]
[1625452676181,8.91088166,34479.0,34478.0,0.18869065]
[1625452678036,8.91088166,34479.0,34478.0,0.184]
[1625452678186,7.19627989,34479.0,34478.0,0.184]
[1625452678288,7.19627989,34479.0,34478.0,0.18870407]
[1625452679839,7.13727989,34479.0,34478.0,0.18870407]
[1625452679939,7.19627989,34479.0,34478.0,0.18870407]
[1625452684402,7.13727989,34479.0,34478.0,0.18870407]
[1625452686808,7.13727989,34479.0,34478.0,0.44889407]
[1625452687108,5.59453324,34479.0,34478.0,0.44889407]
[1625452687207,5.53553324,34479.0,34478.0,0.44889407]
[1625452687809,5.53553324,34479.0,34478.0,0.9478707]
[1625452688011,5.10918236,34479.0,34478.0,0.9478707]
[1625452688511,3.73825633,34479.0,34478.0,2.6094282]
[1625452688861,3.73825633,34479.0,34478.0,3.09057908]
[1625452689163,3.73825633,34479.0,34478.0,3.14957908]
[1625452689417,3.73825633,34479.0,34478.0,3.09057908]
[1625452693074,2.53867464,34479.0,34478.0,3.09057908]
[1625452693174,2.22331464,34479.0,34478.0,3.09057908]
[1625452693676,2.22331464,34479.0,34478.0,3.14957908]
[1625452693779,2.28231464,34479.0,34478.0,3.09057908]
[1625452693876,2.34131464,34479.0,34478.0,3.09057908]
[1625452694378,2.34131464,34479.0,34478.0,1.01318879]
[1625452694379,4.85092896,34479.0,34478.0,1.01318879]
[1625452694879,5.0915044,34479.0,34478.0,1.01318879]
[1625452694980,5.0915044,34479.0,34478.0,0.93004495]
[1625452695330,6.63267233,34479.0,34478.0,0.93004495]